fUSD/lending_fUSD_20260530
["ID","MTS","AMOUNT","RATE_DAILY","PERIOD"]
[423457548,1780138243000,-150.0,0.00013265,2]
[423457550,1780138243000,-150.0,0.00013272,2]
[423457545,1780138243000,-500.0,0.00013251,2]
[423457581,1780138243000,-150.0,0.00013469,2]
[423457637,1780138243000,-403.06171235,0.00013698,2]
[423457579,1780138243000,-150.0,0.00013455,2]
[423457618,1780138243000,-150.0,0.00013669,2]
[423457619,1780138243000,-150.0,0.00013677,2]
[423457620,1780138243000,-150.0,0.00013688,2]
[423457622,1780138243000,-506.83787752,0.00013698,2]
[423457621,1780138243000,-574.57860626,0.00013698,2]
[423457624,1780138243000,-500.0,0.00013698,2]
[423457625,1780138243000,-500.0,0.00013698,2]
[423457626,1780138243000,-500.0,0.00013698,2]
[423457577,1780138243000,-150.0,0.00013445,2]
[423457628,1780138243000,-500.0,0.00013698,2]
[423457615,1780138243000,-165.37,0.00013661,2]
[423457629,1780138243000,-500.0,0.00013698,2]
[423457630,1780138243000,-98.10868406,0.00013698,2]
[423457631,1780138243000,-56.51900635,0.00013698,2]
[423457632,1780138243000,-500.0,0.00013698,2]
[423457635,1780138243000,-500.0,0.00013698,2]
[423457636,1780138243000,-235.59049393,0.00013698,2]
[423457638,1780138243000,-501.71937318,0.00013698,2]
[423457640,1780138243000,-352.24623187,0.00013698,2]
[423457639,1780138243000,-500.0,0.00013698,2]
[423457634,1780138243000,-56.51900635,0.00013698,2]
[423457641,1780138243000,-352.3359197,0.00013698,2]
[423457633,1780138243000,-443.48099365,0.00013698,2]
[423457623,1780138243000,-475.61764834,0.00013698,2]
[423457627,1780138243000,-500.0,0.00013698,2]
[423457616,1780138243000,-150.0,0.00013664,2]
[423457617,1780138243000,-150.0,0.00013666,2]
[423457585,1780138243000,-150.0,0.00013476,2]
[423457587,1780138243000,-1065.97161098,0.00013485,2]
[423457594,1780138243000,-150.0,0.00013534,2]
[423457593,1780138243000,-150.0,0.00013534,2]
[423457595,1780138243000,-150.0,0.00013553,2]
[423457597,1780138243000,-60.17132134,0.00013561,2]
[423457599,1780138243000,-89.82867866,0.00013561,2]
[423457600,1780138243000,-150.0,0.00013572,2]
[423457601,1780138243000,-122.47433543,0.00013573,2]
[423457602,1780138243000,-27.52566457,0.00013573,2]
[423457582,1780138243000,-150.0,0.00013469,2]
[423457605,1780138243000,-150.0,0.00013599,2]
[423457614,1780138243000,-150.0,0.0001365,2]
[423457613,1780138243000,-150.0,0.00013647,2]
[423457608,1780138243000,-150.0,0.00013623,2]
[423457609,1780138243000,-150.0,0.00013631,2]
[423457603,1780138243000,-150.0,0.00013592,2]
[423457607,1780138243000,-150.0,0.00013613,2]
[423457611,1780138243000,-2868.59911662,0.00013643,2]
[423457610,1780138243000,-1488.46058022,0.00013643,2]
[423457606,1780138243000,-150.0,0.00013611,2]
[423457612,1780138243000,-3938.6280115,0.00013643,2]
[423457604,1780138243000,-150.0,0.00013599,2]
[423457645,1780138244000,-1121.38980766,0.00012645,2]
[423457642,1780138244000,-147.6640803,0.00013698,2]
[423457643,1780138244000,-311.20905834,0.00013698,2]
[423457648,1780138246000,-327.95419864,0.00012645,2]
[423457647,1780138246000,-2722.59864557,0.00012645,2]
[423457649,1780138247000,-3574.31836567,0.00012645,2]
[423457765,1780139340000,1000.0,0.0002808,120]
[423457772,1780139431000,-7091.69413966,0.00011227,2]
[423457773,1780139431000,-8180.81586034,0.00011227,2]
[423457775,1780139431000,-250.0,0.00011306,2]
[423457776,1780139431000,-500.0,0.00011353,2]
[423457781,1780139431000,-192.0,0.00011754,2]
[423457778,1780139431000,-221.00879296,0.00011716,2]
[423457774,1780139431000,-156.01,0.00011259,2]
[423457780,1780139431000,-200.0,0.00011728,2]
[423457779,1780139431000,-612.99,0.00011717,2]
[423457782,1780139431000,-2000.0,0.00011818,2]
[423457783,1780139431000,-150.0,0.00011831,2]
[423457784,1780139431000,-448.18,0.00011894,2]
[423457791,1780139431000,-250.0,0.00012384,2]
[423457788,1780139431000,-1200.0,0.00012301,2]
[423457790,1780139431000,-840.5,0.00012329,2]
[423457787,1780139431000,-151.0,0.00012259,2]
[423457777,1780139431000,-156.6895802,0.00011601,2]
[423457786,1780139431000,-1899.4,0.00012169,2]
[423457785,1780139431000,-612.99,0.0001201,2]
[423457808,1780139431000,-1408.0,0.00012678,2]
[423457805,1780139431000,-2700.0,0.000126,4]
[423457803,1780139431000,-500.0,0.00012594,2]
[423457802,1780139431000,-476.06160554,0.00012594,2]
[423457804,1780139431000,-612.99,0.00012595,2]
[423457799,1780139431000,-500.0,0.00012575,2]
[423457801,1780139431000,-500.0,0.00012594,2]
[423457795,1780139431000,-1300.0,0.000125,4]
[423457807,1780139431000,-6136.51478246,0.00012645,2]
[423457806,1780139431000,-150.0,0.00012605,2]
[423457793,1780139431000,-300.0,0.00012467,2]
[423457794,1780139431000,-7655.0,0.00012468,2]
[423457792,1780139431000,-2769.0,0.00012435,2]
[423457789,1780139431000,-612.99,0.00012302,2]
[423457797,1780139431000,-301.0,0.0001256,2]
[423457819,1780139432000,-10000.0,0.000129,2]
[423457816,1780139432000,-275.63,0.00012877,2]
[423457812,1780139432000,-154.66134378,0.00012832,2]
[423457817,1780139432000,-2500.0,0.00012884,2]
[423457815,1780139432000,-13818.79703292,0.00012866,2]
[423457811,1780139432000,-5400.0,0.000128,4]
[423457813,1780139432000,-150.34873257,0.00012845,2]
[423457810,1780139432000,-4000.0,0.000127,4]
[423457809,1780139432000,-215.58360558,0.00012688,2]
[423457818,1780139432000,-612.99,0.00012888,2]
[423457814,1780139432000,-13818.79703292,0.00012845,2]
[423457821,1780139432000,-6025.76970673,0.000129,2]
[423457820,1780139432000,-6800.0,0.000129,4]
[423457832,1780139432000,-309.5415335,0.00012932,2]
[423457835,1780139432000,-304.37742346,0.00012932,2]
[423457833,1780139432000,-6813.0253,0.00012932,2]
[423457834,1780139432000,-4109.65243298,0.00012932,2]
[423457831,1780139432000,-23649.26911379,0.00012932,2]
[423457823,1780139432000,-150.0,0.00012927,2]
[423457830,1780139432000,-947.47399513,0.00012932,2]
[423457829,1780139432000,-150.0,0.00012927,2]
[423457826,1780139432000,-150.0,0.00012927,2]
[423457825,1780139432000,-150.0,0.00012927,2]
[423457827,1780139432000,-150.0,0.00012927,2]
[423457822,1780139432000,-581.93410333,0.00012919,2]
[423457824,1780139432000,-150.0,0.00012927,2]
[423457828,1780139432000,-150.0,0.00012927,2]
[423457844,1780139437000,-2121.2871114,0.00012941,2]
[423457849,1780139437000,-150.0,0.00012945,2]
[423457848,1780139437000,-150.0,0.00012945,2]
[423457852,1780139437000,-150.0,0.00012945,2]
[423457851,1780139437000,-150.0,0.00012945,2]
[423457843,1780139437000,-176.1321593,0.00012941,2]
[423457842,1780139437000,-5653.40884356,0.00012932,2]
[423457850,1780139437000,-150.0,0.00012945,2]
[423457839,1780139437000,-550.563375,0.00012594,2]
[423457846,1780139437000,-150.0,0.00012945,2]
[423457847,1780139437000,-150.0,0.00012945,2]
[423457840,1780139437000,-500.0,0.00012594,2]
[423457841,1780139437000,-13818.79703292,0.00012887,2]
[423457838,1780139437000,-257.02251199,0.00012594,2]
[423457837,1780139437000,-500.0,0.00012594,2]
[423457845,1780139437000,-23649.2691137,0.00012943,2]
[423457855,1780139437000,-23649.2691137,0.00012954,2]
[423457872,1780139437000,-400.0,0.00013032,2]
[423457854,1780139437000,-500.0,0.00012945,2]
[423457853,1780139437000,-150.0,0.00012945,2]
[423457869,1780139437000,-23649.2691137,0.00013032,2]
[423457867,1780139437000,-242.2493141,0.00013022,2]
[423457864,1780139437000,-150.0,0.00013005,2]
[423457871,1780139437000,-400.0,0.00013032,2]
[423457868,1780139437000,-150.0,0.00013025,2]
[423457866,1780139437000,-23649.2691137,0.00013021,2]
[423457865,1780139437000,-23649.2691137,0.0001301,2]
[423457870,1780139437000,-150.0,0.00013032,2]
[423457862,1780139437000,-150.0,0.00012998,2]
[423457861,1780139437000,-23649.2691137,0.00012988,2]
[423457857,1780139437000,-23649.2691137,0.00012965,2]
[423457859,1780139437000,-150.0,0.00012985,2]
[423457860,1780139437000,-403.0,0.00012986,2]
[423457856,1780139437000,-150.0,0.00012965,2]
[423457858,1780139437000,-23649.2691137,0.00012976,2]
[423457863,1780139437000,-23649.2691137,0.00012999,2]
[423457889,1780139438000,-151.0,0.00013081,2]
[423457885,1780139438000,-395.79,0.00013069,2]
[423457887,1780139438000,-157.68,0.0001307,2]
[423457893,1780139438000,-151.0,0.00013094,2]
[423457888,1780139438000,-184.9,0.00013078,2]
[423457884,1780139438000,-642.24,0.00013067,2]
[423457882,1780139438000,-150.0,0.00013065,2]
[423457876,1780139438000,-150.0,0.00013041,2]
[423457881,1780139438000,-643.45,0.0001306,2]
[423457880,1780139438000,-643.45,0.0001306,2]
[423457877,1780139438000,-150.0,0.00013045,2]
[423457878,1780139438000,-150.0,0.00013052,2]
[423457875,1780139438000,-1901535.51585817,0.00013032,2]
[423457874,1780139438000,-264261.74834183,0.00013032,2]
[423457873,1780139438000,-1500000.0,0.00013032,2]
[423457886,1780139438000,-151.0,0.0001307,2]
[423457879,1780139438000,-150.0,0.00013056,2]
[423457890,1780139438000,-150.0,0.00013085,2]
[423457883,1780139438000,-400.0,0.00013066,2]
[423457891,1780139438000,-150.0,0.00013089,2]
[423457909,1780139438000,-48738.7181191,0.00013132,2]
[423457908,1780139438000,-6751.1132,0.00013132,2]
[423457906,1780139438000,-150.0,0.00013125,2]
[423457907,1780139438000,-151.0,0.00013127,2]
[423457904,1780139438000,-151.0,0.00013108,2]
[423457903,1780139438000,-151.0,0.00013108,2]
[423457901,1780139438000,-151.0,0.00013108,2]
[423457902,1780139438000,-151.0,0.00013108,2]
[423457905,1780139438000,-386.56,0.00013114,2]
[423457910,1780139438000,-597224.41118417,0.00013132,2]
[423457900,1780139438000,-150.0,0.00013105,2]
[423457895,1780139438000,-151.0,0.00013094,2]
[423457894,1780139438000,-151.0,0.00013094,2]
[423457897,1780139438000,-481.78,0.00013094,2]
[423457892,1780139438000,-151.0,0.00013091,2]
[423457896,1780139438000,-481.78,0.00013094,2]
[423457899,1780139438000,-150.0,0.00013105,2]
[423457898,1780139438000,-182.71,0.00013101,2]
[423457915,1780139440000,-1391.93868977,0.00013132,2]
[423457913,1780139440000,-55264.1204462,0.00013132,2]
[423457914,1780139440000,-2847.10979599,0.00013132,2]
[423457912,1780139440000,-13818.79703292,0.00012907,2]
[423457916,1780139440000,-1369.58581634,0.00013132,2]
[423457919,1780139442000,-1861.22406109,0.00012788,2]
[423457921,1780139442000,-261.04908522,0.00012788,2]
[423457920,1780139442000,-296.82102635,0.00012788,2]
[423457948,1780139446000,-392.30249292,0.00012788,2]
[423457978,1780140540000,1000.0,0.00028079,120]
[423458002,1780140632000,-500.0,0.00010697,2]
[423457982,1780140632000,-67.11995351,0.00010698,2]
[423457981,1780140632000,-1200.0,0.00010697,2]
[423457983,1780140632000,-182.88004649,0.00010698,2]
[423457985,1780140632000,-362.48764121,0.00010699,2]
[423457984,1780140632000,-500.0,0.00010699,2]
[423457986,1780140632000,-17.42811718,0.00010699,2]
[423457987,1780140632000,-500.0,0.00010699,2]
[423457988,1780140632000,-105.1935681,0.00010699,2]
[423457989,1780140632000,-480.2007944,0.00010699,2]
[423457991,1780140632000,-150.0,0.00010699,2]
[423457992,1780140632000,-5674.95038285,0.000107,2]
[423457993,1780140632000,-26599.26674778,0.000107,2]
[423457994,1780140632000,-27482.85208629,0.000107,2]
[423457995,1780140632000,-313.73530411,0.000107,2]
[423457999,1780140632000,-2726.52883703,0.000107,2]
[423457997,1780140632000,-478.6087615,0.000107,2]
[423457998,1780140632000,-5066.79958262,0.000107,2]
[423458000,1780140632000,-1194.06234076,0.000107,2]
[423458001,1780140632000,-1865.97484225,0.000107,2]
[423458003,1780140632000,-1086.26738872,0.000107,2]
[423457990,1780140632000,-333.24312388,0.00010699,2]
[423458025,1780140637000,-500.0,0.00010697,2]
[423458022,1780140637000,-262.3606233,0.00010697,2]
[423458023,1780140637000,-500.0,0.00010697,2]
[423458024,1780140637000,-500.0,0.00010697,2]
[423458026,1780140637000,-500.0,0.00010697,2]
[423458029,1780140637000,-209.12966642,0.00010722,2]
[423458028,1780140637000,-250.0,0.00010703,2]
[423458027,1780140637000,-1172.7876251,0.000107,2]
[423458059,1780140638000,-700.0,0.000127,4]
[423458058,1780140638000,-812.12056728,0.00012688,2]
[423458060,1780140638000,-9673.15792304,0.00012747,2]
[423458061,1780140638000,-500.0,0.00012785,2]
[423458063,1780140638000,-151.0,0.00012785,2]
[423458064,1780140638000,-1000.0,0.000128,4]
[423458062,1780140638000,-151.0,0.00012785,2]
[423458066,1780140638000,-159.62619924,0.00012845,2]
[423458067,1780140638000,-150.34873258,0.00012845,2]
[423458069,1780140638000,-433.0,0.00012871,2]
[423458065,1780140638000,-1446.4,0.00012817,2]
[423458068,1780140638000,-33234.4339,0.00012868,2]
[423458070,1780140638000,-1400.0,0.000129,4]
[423458072,1780140638000,-820.17,0.00012943,2]
[423458076,1780140638000,-159.62619924,0.00012985,2]
[423458075,1780140638000,-151.0,0.00012946,2]
[423458073,1780140638000,-172.47512054,0.00012943,2]
[423458078,1780140638000,-24337.6393525,0.00013,5]
[423458077,1780140638000,-5681.6582,0.00013,2]
[423458079,1780140638000,-13962.44804907,0.00013,15]
[423458074,1780140638000,-2351.0,0.00012943,2]
[423458080,1780140638000,-21284.34220233,0.00013016,2]
[423458081,1780140638000,-9673.15792304,0.00013016,2]
[423458083,1780140638000,-152.0501834,0.00013048,2]
[423458082,1780140638000,-242.2493141,0.00013038,2]
[423458071,1780140638000,-159.62619924,0.00012915,2]
[423458054,1780140638000,-300.0,0.000126,4]
[423458053,1780140638000,-477.29,0.0001259,2]
[423458057,1780140638000,-206.36102232,0.00012688,2]
[423458085,1780140638000,-108092.9302735,0.00013048,2]
[423458031,1780140638000,-500.0,0.00011159,2]
[423458033,1780140638000,-1446.4,0.00011393,2]
[423458032,1780140638000,-2001.15,0.00011385,2]
[423458030,1780140638000,-338.9668459,0.00011025,2]
[423458034,1780140638000,-1829.05,0.00011495,2]
[423458035,1780140638000,-163.56,0.00011605,2]
[423458037,1780140638000,-255.0,0.00011737,2]
[423458036,1780140638000,-150.0,0.00011712,2]
[423458040,1780140638000,-1680.0,0.00011767,2]
[423458039,1780140638000,-250.0,0.00011767,2]
[423458042,1780140638000,-6680.0,0.00012124,2]
[423458038,1780140638000,-167.59,0.00011744,2]
[423458041,1780140638000,-2000.0,0.00011862,2]
[423458045,1780140638000,-184.92,0.00012264,2]
[423458046,1780140638000,-151.0,0.00012272,2]
[423458043,1780140638000,-645.98,0.00012248,2]
[423458044,1780140638000,-151.0,0.00012248,2]
[423458047,1780140638000,-700.41,0.00012329,2]
[423458048,1780140638000,-152.0,0.00012451,7]
[423458050,1780140638000,-215.58360558,0.00012484,2]
[423458049,1780140638000,-9673.15792308,0.00012478,2]
[423458051,1780140638000,-165.69,0.00012578,2]
[423458052,1780140638000,-477.29,0.00012589,2]
[423458056,1780140638000,-5000.0,0.00012688,2]
[423458055,1780140638000,-477.29,0.00012681,2]
[423458084,1780140638000,-2791.4597307,0.00013048,2]
[423458138,1780140638000,-184.9,0.00013101,2]
[423458090,1780140638000,-9718.2237275,0.00013048,2]
[423458120,1780140638000,-481.78,0.00013078,2]
[423458121,1780140638000,-643.45,0.00013078,2]
[423458125,1780140638000,-572.6,0.00013081,2]
[423458123,1780140638000,-395.79,0.00013081,2]
[423458127,1780140638000,-297.64,0.00013081,2]
[423458124,1780140638000,-481.78,0.00013081,2]
[423458128,1780140638000,-643.45,0.00013086,2]
[423458129,1780140638000,-481.78,0.00013086,2]
[423458122,1780140638000,-183.72,0.00013078,2]
[423458130,1780140638000,-151.0,0.00013086,2]
[423458131,1780140638000,-151.0,0.00013094,2]
[423458133,1780140638000,-635.78,0.000131,2]
[423458132,1780140638000,-151.0,0.00013094,2]
[423458135,1780140638000,-572.6,0.000131,2]
[423458136,1780140638000,-567.62,0.00013101,2]
[423458140,1780140638000,-151.0,0.00013108,2]
[423458134,1780140638000,-483.71,0.000131,2]
[423458137,1780140638000,-184.9,0.00013101,2]
[423458139,1780140638000,-151.0,0.00013108,2]
[423458142,1780140638000,-159.62619924,0.00013125,2]
[423458141,1780140638000,-481.78,0.00013108,2]
[423458143,1780140638000,-151.0,0.00013129,2]
[423458144,1780140638000,-1000.0,0.00013132,2]
[423458145,1780140638000,-1000.0,0.00013132,2]
[423458086,1780140638000,-10449.725695,0.00013048,2]
[423458118,1780140638000,-245.86,0.00013078,2]
[423458116,1780140638000,-643.45,0.00013078,2]
[423458126,1780140638000,-151.0,0.00013081,2]
[423458115,1780140638000,-643.45,0.00013071,2]
[423458087,1780140638000,-3205.6727169,0.00013048,2]
[423458119,1780140638000,-653.28,0.00013078,2]
[423458088,1780140638000,-803894.6646141,0.00013048,2]
[423458089,1780140638000,-12325.698676,0.00013048,2]
[423458091,1780140638000,-400.0,0.00013048,2]
[423458092,1780140638000,-35955.2479806,0.00013048,2]
[423458093,1780140638000,-250.0,0.00013048,2]
[423458095,1780140638000,-5419.13555538,0.0001305,2]
[423458097,1780140638000,-159.62619924,0.00013055,2]
[423458099,1780140638000,-812.12056724,0.00013057,2]
[423458103,1780140638000,-212.08,0.00013067,2]
[423458100,1780140638000,-500.0,0.00013059,2]
[423458106,1780140638000,-184.9,0.00013069,2]
[423458101,1780140638000,-559.56,0.00013066,2]
[423458111,1780140638000,-481.78,0.0001307,2]
[423458105,1780140638000,-481.78,0.00013069,2]
[423458102,1780140638000,-572.6,0.00013067,2]
[423458117,1780140638000,-481.78,0.00013078,2]
[423458107,1780140638000,-643.45,0.00013069,2]
[423458109,1780140638000,-572.61,0.0001307,2]
[423458108,1780140638000,-184.9,0.0001307,2]
[423458104,1780140638000,-572.6,0.00013068,2]
[423458110,1780140638000,-181.91,0.0001307,2]
[423458112,1780140638000,-481.78,0.0001307,2]
[423458113,1780140638000,-572.6,0.0001307,2]
[423458114,1780140638000,-572.6,0.0001307,2]
[423458187,1780140639000,-150.0,0.00013488,2]
[423458184,1780140639000,-812.12056724,0.00013425,2]
[423458186,1780140639000,-150.0,0.00013488,2]
[423458185,1780140639000,-150.0,0.00013488,2]
[423458183,1780140639000,-163.0,0.000134,2]
[423458178,1780140639000,-350.0,0.0001332,2]
[423458181,1780140639000,-200.0,0.00013396,2]
[423458179,1780140639000,-2000.0,0.00013345,2]
[423458180,1780140639000,-200.0,0.00013396,2]
[423458189,1780140639000,-150.0,0.00013488,2]
[423458177,1780140639000,-9673.15792304,0.00013285,2]
[423458182,1780140639000,-1590.0,0.000134,2]
[423458188,1780140639000,-150.0,0.00013488,2]
[423458202,1780140639000,-9673.15792304,0.00013554,2]
[423458190,1780140639000,-150.0,0.00013488,2]
[423458193,1780140639000,-150.0,0.0001351,2]
[423458192,1780140639000,-150.0,0.00013488,2]
[423458195,1780140639000,-151.0,0.00013529,2]
[423458197,1780140639000,-200.0,0.0001353,2]
[423458194,1780140639000,-5272.54849332,0.00013516,2]
[423458199,1780140639000,-150.0,0.00013548,2]
[423458196,1780140639000,-200.0,0.0001353,2]
[423458200,1780140639000,-350.0,0.0001355,2]
[423458198,1780140639000,-150.0,0.00013532,2]
[423458201,1780140639000,-21284.34220233,0.00013554,2]
[423458174,1780140639000,-200.0,0.00013263,2]
[423458191,1780140639000,-150.0,0.00013488,2]
[423458173,1780140639000,-1353.79095262,0.00013263,2]
[423458146,1780140639000,-1000.0,0.00013132,2]
[423458176,1780140639000,-21284.34220233,0.00013285,2]
[423458203,1780140639000,-150.0,0.00013555,2]
[423458151,1780140639000,-208951.627366,0.00013132,2]
[423458147,1780140639000,-1000.0,0.00013132,2]
[423458148,1780140639000,-448.14641804,0.00013132,2]
[423458149,1780140639000,-290.85141829,0.00013132,2]
[423458152,1780140639000,-200.0,0.00013132,2]
[423458150,1780140639000,-151.6585161,0.00013132,2]
[423458153,1780140639000,-2000.0,0.00013132,2]
[423458155,1780140639000,-200.0,0.00013132,2]
[423458154,1780140639000,-200.0,0.00013132,2]
[423458157,1780140639000,-1816.64,0.00013209,2]
[423458159,1780140639000,-192.0,0.00013223,2]
[423458161,1780140639000,-500.0,0.00013251,2]
[423458160,1780140639000,-275.39800743,0.00013251,2]
[423458164,1780140639000,-500.0,0.00013251,2]
[423458163,1780140639000,-500.0,0.00013251,2]
[423458158,1780140639000,-1590.27,0.0001321,2]
[423458156,1780140639000,-2000.0,0.00013209,2]
[423458165,1780140639000,-500.0,0.00013251,2]
[423458162,1780140639000,-500.0,0.00013251,2]
[423458167,1780140639000,-500.0,0.00013251,2]
[423458166,1780140639000,-500.0,0.00013251,2]
[423458169,1780140639000,-500.0,0.00013251,2]
[423458170,1780140639000,-500.0,0.00013251,2]
[423458171,1780140639000,-621.42824537,0.00013251,2]
[423458172,1780140639000,-200.0,0.00013263,2]
[423458175,1780140639000,-200.0,0.00013263,2]
[423458168,1780140639000,-500.0,0.00013251,2]
[423458204,1780140639000,-150.0,0.00013567,2]
[423458250,1780140639000,-629.97,0.00013698,2]
[423458206,1780140639000,-150.0,0.00013577,2]
[423458238,1780140639000,-500.0,0.00013698,2]
[423458240,1780140639000,-500.0,0.00013698,2]
[423458239,1780140639000,-500.0,0.00013698,2]
[423458244,1780140639000,-629.97,0.00013698,2]
[423458242,1780140639000,-500.0,0.00013698,2]
[423458252,1780140639000,-629.97,0.00013698,2]
[423458245,1780140639000,-629.97,0.00013698,2]
[423458241,1780140639000,-500.0,0.00013698,2]
[423458243,1780140639000,-500.0,0.00013698,2]
[423458249,1780140639000,-629.97,0.00013698,2]
[423458246,1780140639000,-629.97,0.00013698,2]
[423458247,1780140639000,-629.97,0.00013698,2]
[423458266,1780140639000,-629.97,0.00013698,2]
[423458253,1780140639000,-629.97,0.00013698,2]
[423458254,1780140639000,-629.97,0.00013698,2]
[423458255,1780140639000,-629.97,0.00013698,2]
[423458256,1780140639000,-629.97,0.00013698,2]
[423458262,1780140639000,-629.97,0.00013698,2]
[423458260,1780140639000,-629.97,0.00013698,2]
[423458259,1780140639000,-629.97,0.00013698,2]
[423458258,1780140639000,-509.66155533,0.00013698,2]
[423458264,1780140639000,-629.97,0.00013698,2]
[423458257,1780140639000,-629.97,0.00013698,2]
[423458261,1780140639000,-629.97,0.00013698,2]
[423458263,1780140639000,-629.97,0.00013698,2]
[423458265,1780140639000,-629.97,0.00013698,2]
[423458205,1780140639000,-3743.12247816,0.0001357,2]
[423458235,1780140639000,-500.0,0.00013698,2]
[423458234,1780140639000,-500.0,0.00013698,2]
[423458248,1780140639000,-629.97,0.00013698,2]
[423458233,1780140639000,-500.0,0.00013698,2]
[423458237,1780140639000,-500.0,0.00013698,2]
[423458210,1780140639000,-1545.0,0.00013599,2]
[423458209,1780140639000,-150.0,0.00013595,2]
[423458212,1780140639000,-150.0,0.00013608,2]
[423458208,1780140639000,-954.16,0.00013586,2]
[423458207,1780140639000,-163.0,0.0001358,2]
[423458213,1780140639000,-150.0,0.00013622,2]
[423458214,1780140639000,-150.0,0.00013644,2]
[423458215,1780140639000,-150.0,0.00013645,2]
[423458216,1780140639000,-150.0,0.00013654,2]
[423458217,1780140639000,-200.0,0.00013665,2]
[423458218,1780140639000,-200.0,0.00013665,2]
[423458220,1780140639000,-150.0,0.00013668,2]
[423458219,1780140639000,-150.0,0.00013667,2]
[423458211,1780140639000,-150.0,0.000136,2]
[423458230,1780140639000,-500.0,0.00013698,2]
[423458224,1780140639000,-500.0,0.00013698,2]
[423458221,1780140639000,-150.0,0.00013689,2]
[423458223,1780140639000,-1005.0783081,0.00013698,2]
[423458222,1780140639000,-151.0,0.00013698,2]
[423458226,1780140639000,-500.0,0.00013698,2]
[423458227,1780140639000,-500.0,0.00013698,2]
[423458229,1780140639000,-502.31004729,0.00013698,2]
[423458228,1780140639000,-500.0,0.00013698,2]
[423458225,1780140639000,-500.0,0.00013698,2]
[423458232,1780140639000,-500.0,0.00013698,2]
[423458231,1780140639000,-500.0,0.00013698,2]
[423458236,1780140639000,-500.0,0.00013698,2]
[423458306,1780140640000,-881.29,0.00013698,2]
[423458307,1780140640000,-881.29,0.00013698,2]
[423458294,1780140640000,-500.0,0.00013698,2]
[423458310,1780140640000,-881.29,0.00013698,2]
[423458311,1780140640000,-881.29,0.00013698,2]
[423458305,1780140640000,-881.29,0.00013698,2]
[423458299,1780140640000,-500.0,0.00013698,2]
[423458304,1780140640000,-881.29,0.00013698,2]
[423458302,1780140640000,-357.2090424,0.00013698,2]
[423458301,1780140640000,-500.0,0.00013698,2]
[423458296,1780140640000,-500.0,0.00013698,2]
[423458309,1780140640000,-881.29,0.00013698,2]
[423458303,1780140640000,-881.29,0.00013698,2]
[423458308,1780140640000,-881.29,0.00013698,2]
[423458321,1780140640000,-500.0,0.00013698,2]
[423458314,1780140640000,-881.29,0.00013698,2]
[423458313,1780140640000,-881.29,0.00013698,2]
[423458316,1780140640000,-881.29,0.00013698,2]
[423458322,1780140640000,-500.0,0.00013698,2]
[423458325,1780140640000,-500.0,0.00013698,2]
[423458318,1780140640000,-500.0,0.00013698,2]
[423458315,1780140640000,-881.29,0.00013698,2]
[423458317,1780140640000,-500.0,0.00013698,2]
[423458323,1780140640000,-500.0,0.00013698,2]
[423458319,1780140640000,-500.0,0.00013698,2]
[423458324,1780140640000,-500.0,0.00013698,2]
[423458320,1780140640000,-500.0,0.00013698,2]
[423458312,1780140640000,-881.29,0.00013698,2]
[423458300,1780140640000,-500.0,0.00013698,2]